[Event "Titled Tuesday Blitz October 31 Late 2023"]
[White "Wisniowski, Natalie"]
[Black "Ghosh, Chanchal Kumer"]
[WhiteFideId "30929261"]
[BlackFideId "10201858"]
[WhiteElo "2161"]
[BlackElo "1967"]
[Result "1-0"]
[Round "9"]
[TimeControl "180+1"]
[Date "2023.10.31"]
[WhiteClock "0:00:13"]
[BlackClock "0:00:00"]
[Board "117"]

1. e4 {[%clk 0:02:57]}  c5 {[%clk 0:02:59]} 2. d4 {[%clk 0:02:56]}  cxd4 {[%clk 0:02:57]} 3. c3 {[%clk 0:02:56]}  dxc3 {[%clk 0:02:57]} 4. Nxc3 {[%clk 0:02:57]}  d6 {[%clk 0:02:57]} 5. Nf3 {[%clk 0:02:56]}  a6 {[%clk 0:02:57]} 6. Bf4 {[%clk 0:02:53]}  e5 {[%clk 0:02:56]} 7. Bg3 {[%clk 0:02:49]}  Nc6 {[%clk 0:02:53]} 8. Bc4 {[%clk 0:02:41]}  Nf6 {[%clk 0:02:45]} 9. Ng5 {[%clk 0:02:37]}  d5 {[%clk 0:02:30]} 10. exd5 {[%clk 0:02:25]}  Na5 {[%clk 0:02:24]} 11. Be2 {[%clk 0:02:15]}  Bb4 {[%clk 0:02:12]} 12. Qa4+ {[%clk 0:02:07]}  Nc6 {[%clk 0:01:42]} 13. dxc6 {[%clk 0:02:02]}  Bxc3+ {[%clk 0:01:41]} 14. bxc3 {[%clk 0:02:00]}  O-O {[%clk 0:01:40]} 15. cxb7 {[%clk 0:01:55]}  Bxb7 {[%clk 0:01:40]} 16. O-O {[%clk 0:01:54]}  Qd2 {[%clk 0:01:36]} 17. Bf3 {[%clk 0:01:33]}  Qxg5 {[%clk 0:00:42]} 18. Bxb7 {[%clk 0:01:31]}  Rab8 {[%clk 0:00:42]} 19. Bxa6 {[%clk 0:01:28]}  h5 {[%clk 0:00:34]} 20. h4 {[%clk 0:01:25]}  Qg6 {[%clk 0:00:32]} 21. Be2 {[%clk 0:01:13]}  Rfe8 {[%clk 0:00:26]} 22. Rfd1 {[%clk 0:01:04]}  Rbc8 {[%clk 0:00:21]} 23. c4 {[%clk 0:01:00]}  Ne4 {[%clk 0:00:18]} 24. Qa3 {[%clk 0:00:55]}  f5 {[%clk 0:00:09]} 25. Bh2 {[%clk 0:00:43]}  f4 {[%clk 0:00:08]} 26. Bf3 {[%clk 0:00:42]}  Nf6 {[%clk 0:00:06]} 27. Bd5+ {[%clk 0:00:40]}  Kh8 {[%clk 0:00:06]} 28. Qd3 {[%clk 0:00:31]}  e4 {[%clk 0:00:06]} 29. Qd4 {[%clk 0:00:29]}  f3 {[%clk 0:00:05]} 30. Bg3 {[%clk 0:00:21]}  Qg4 {[%clk 0:00:03]} 31. Qe3 {[%clk 0:00:15]}  fxg2 {[%clk 0:00:02]} 32. Kxg2 {[%clk 0:00:14]}  Rcd8 {[%clk 0:00:01]} 33. Qf4 {[%clk 0:00:13]}  Qg6 {[%clk 0:00:00]} 34. Qg5 {[%clk 0:00:13]} 1-0


[Site "https://www.chess.com"]

[Event "Titled Tuesday Blitz October 31 Late 2023"]
[White "Vargas, Mauricio"]
[Black "ChessDojo"]
[WhiteFideId "4404572"]
[WhiteElo "1849"]
[BlackElo "2118"]
[Result "0-1"]
[Round "9"]
[TimeControl "180+1"]
[Date "2023.10.31"]
[WhiteClock "0:00:02"]
[BlackClock "0:01:00"]
[Board "120"]

1. e4 {[%clk 0:02:54]}  Nc6 {[%clk 0:02:57]} 2. f4 {[%clk 0:02:42]}  d5 {[%clk 0:02:52]} 3. Nf3 {[%clk 0:02:42]}  dxe4 {[%clk 0:02:51]} 4. Ng5 {[%clk 0:02:42]}  Nf6 {[%clk 0:02:51]} 5. Nc3 {[%clk 0:02:37]}  Qd4 {[%clk 0:02:43]} 6. b3 {[%clk 0:02:25]}  h6 {[%clk 0:02:41]} 7. Nh3 {[%clk 0:02:15]}  Bxh3 {[%clk 0:02:39]} 8. gxh3 {[%clk 0:02:15]}  e3 {[%clk 0:02:38]} 9. Bb2 {[%clk 0:02:05]}  Qxf4 {[%clk 0:02:29]} 10. dxe3 {[%clk 0:01:59]}  Qxe3+ {[%clk 0:02:27]} 11. Qe2 {[%clk 0:01:56]}  Qxe2+ {[%clk 0:02:22]} 12. Bxe2 {[%clk 0:01:52]}  O-O-O {[%clk 0:02:22]} 13. Bd3 {[%clk 0:01:45]}  Nb4 {[%clk 0:02:17]} 14. O-O-O {[%clk 0:01:44]}  e6 {[%clk 0:02:14]} 15. Be2 {[%clk 0:01:29]}  Bd6 {[%clk 0:02:10]} 16. a3 {[%clk 0:01:25]}  Bf4+ {[%clk 0:02:10]} 17. Kb1 {[%clk 0:01:22]}  Nc6 {[%clk 0:02:09]} 18. Bd3 {[%clk 0:01:10]}  Rhe8 {[%clk 0:01:56]} 19. Rdf1 {[%clk 0:01:07]}  Bg5 {[%clk 0:01:54]} 20. Ne4 {[%clk 0:00:59]}  Nxe4 {[%clk 0:01:36]} 21. Bxe4 {[%clk 0:00:58]}  f6 {[%clk 0:01:35]} 22. Rhg1 {[%clk 0:00:43]}  Rd7 {[%clk 0:01:28]} 23. Rg4 {[%clk 0:00:20]}  f5 {[%clk 0:01:14]} 24. Bxc6 {[%clk 0:00:18]}  bxc6 {[%clk 0:01:13]} 25. Rb4 {[%clk 0:00:18]}  c5 {[%clk 0:01:09]} 26. Rc4 {[%clk 0:00:15]}  Rd5 {[%clk 0:01:08]} 27. a4 {[%clk 0:00:14]}  Bf6 {[%clk 0:01:07]} 28. Ba3 {[%clk 0:00:12]}  g5 {[%clk 0:01:00]} 29. Bxc5 {[%clk 0:00:10]}  Red8 {[%clk 0:01:00]} 30. Bxa7 {[%clk 0:00:08]}  Rd1+ {[%clk 0:00:59]} 31. Rxd1 {[%clk 0:00:07]}  Rxd1+ {[%clk 0:00:59]} 32. Ka2 {[%clk 0:00:02]}  Ra1# {[%clk 0:01:00]} 0-1


[Site "https://www.chess.com"]

[Event "Titled Tuesday Blitz October 31 Late 2023"]
[White "Bok, Benjamin"]
[Black "Nihal Sarin"]
[WhiteFideId "1017063"]
[BlackFideId "25092340"]
[WhiteElo "2983"]
[BlackElo "3137"]
[Result "0-1"]
[Round "10"]
[TimeControl "180+1"]
[Date "2023.10.31"]
[WhiteClock "0:00:00"]
[BlackClock "0:00:30"]
[Board "1"]

1. d4 {[%clk 0:03:00]}  d5 {[%clk 0:02:55]} 2. c4 {[%clk 0:03:00]}  dxc4 {[%clk 0:02:56]} 3. Nf3 {[%clk 0:03:00]}  c6 {[%clk 0:02:54]} 4. e3 {[%clk 0:02:58]}  Be6 {[%clk 0:02:55]} 5. a4 {[%clk 0:02:45]}  Nf6 {[%clk 0:02:51]} 6. Na3 {[%clk 0:02:36]}  Bd5 {[%clk 0:02:49]} 7. Nxc4 {[%clk 0:02:33]}  e6 {[%clk 0:02:50]} 8. Bd3 {[%clk 0:02:29]}  Be7 {[%clk 0:02:42]} 9. O-O {[%clk 0:02:29]}  O-O {[%clk 0:02:42]} 10. Qe2 {[%clk 0:02:27]}  c5 {[%clk 0:02:43]} 11. e4 {[%clk 0:02:14]}  Bxc4 {[%clk 0:02:42]} 12. Bxc4 {[%clk 0:02:15]}  cxd4 {[%clk 0:02:43]} 13. e5 {[%clk 0:02:15]}  Nd5 {[%clk 0:02:38]} 14. Nxd4 {[%clk 0:02:06]}  Nc6 {[%clk 0:02:25]} 15. Nf3 {[%clk 0:01:52]}  Na5 {[%clk 0:02:24]} 16. Bd3 {[%clk 0:01:46]}  Nb3 {[%clk 0:02:10]} 17. Rb1 {[%clk 0:01:33]}  Nxc1 {[%clk 0:01:56]} 18. Rfxc1 {[%clk 0:01:08]}  Nf4 {[%clk 0:01:56]} 19. Qe3 {[%clk 0:01:02]}  Nxd3 {[%clk 0:01:49]} 20. Rd1 {[%clk 0:01:02]}  Qa5 {[%clk 0:01:43]} 21. Qxd3 {[%clk 0:00:55]}  Qxa4 {[%clk 0:01:44]} 22. Qd7 {[%clk 0:00:55]}  Qxd7 {[%clk 0:01:36]} 23. Rxd7 {[%clk 0:00:56]}  Bc5 {[%clk 0:01:37]} 24. Rxb7 {[%clk 0:00:55]}  Rab8 {[%clk 0:01:36]} 25. Rc7 {[%clk 0:00:50]}  Rfc8 {[%clk 0:01:31]} 26. Rxc8+ {[%clk 0:00:49]}  Rxc8 {[%clk 0:01:31]} 27. Kf1 {[%clk 0:00:48]}  Bb6 {[%clk 0:01:32]} 28. Rd1 {[%clk 0:00:47]}  h6 {[%clk 0:01:21]} 29. h4 {[%clk 0:00:47]}  g5 {[%clk 0:01:08]} 30. hxg5 {[%clk 0:00:46]}  hxg5 {[%clk 0:01:09]} 31. Nxg5 {[%clk 0:00:31]}  Rc2 {[%clk 0:01:08]} 32. Ne4 {[%clk 0:00:24]}  Rxb2 {[%clk 0:01:09]} 33. g4 {[%clk 0:00:23]}  a5 {[%clk 0:01:07]} 34. Rd3 {[%clk 0:00:15]}  Kg7 {[%clk 0:00:53]} 35. Kg2 {[%clk 0:00:14]}  a4 {[%clk 0:00:39]} 36. Ra3 {[%clk 0:00:11]}  Rb4 {[%clk 0:00:40]} 37. f3 {[%clk 0:00:10]}  Bd4 {[%clk 0:00:39]} 38. Nc3 {[%clk 0:00:09]}  Rb3 {[%clk 0:00:35]} 39. Rxb3 {[%clk 0:00:06]}  axb3 {[%clk 0:00:36]} 40. Nb1 {[%clk 0:00:05]}  Bxe5 {[%clk 0:00:36]} 41. Kf2 {[%clk 0:00:05]}  Kf6 {[%clk 0:00:30]} 42. Ke3 {[%clk 0:00:05]}  Kg5 {[%clk 0:00:31]} 43. Ke4 {[%clk 0:00:04]}  Bc7 {[%clk 0:00:28]} 44. Nd2 {[%clk 0:00:04]}  b2 {[%clk 0:00:29]} 45. Nb1 {[%clk 0:00:04]}  Kh4 {[%clk 0:00:29]} 46. Ke3 {[%clk 0:00:03]}  Kg3 {[%clk 0:00:29]} 47. Ke2 {[%clk 0:00:03]}  Kf4 {[%clk 0:00:28]} 48. Nd2 {[%clk 0:00:02]}  Ba5 {[%clk 0:00:28]} 49. Nb1 {[%clk 0:00:03]}  Bb4 {[%clk 0:00:29]} 50. Kf2 {[%clk 0:00:03]}  e5 {[%clk 0:00:29]} 51. Ke2 {[%clk 0:00:03]}  e4 {[%clk 0:00:30]} 52. fxe4 {[%clk 0:00:04]}  Kxe4 {[%clk 0:00:31]} 53. g5 {[%clk 0:00:04]}  Kd4 {[%clk 0:00:28]} 54. Kd1 {[%clk 0:00:01]}  Kd3 {[%clk 0:00:28]} 55. g6 {[%clk 0:00:02]}  fxg6 {[%clk 0:00:29]} 56. Nd2 {[%clk 0:00:02]}  g5 {[%clk 0:00:29]} 57. Nb1 {[%clk 0:00:02]}  g4 {[%clk 0:00:29]} 58. Nd2 {[%clk 0:00:00]}  g3 {[%clk 0:00:30]} 0-1


[Site "https://www.chess.com"]

[Event "Titled Tuesday Blitz October 31 Late 2023"]
[White "Aravindh, Chithambaram VR."]
[Black "Pranav, V"]
[WhiteFideId "5072786"]
[BlackFideId "25060783"]
[WhiteElo "2925"]
[BlackElo "3059"]
[Result "0-1"]
[Round "10"]
[TimeControl "180+1"]
[Date "2023.10.31"]
[WhiteClock "0:00:25"]
[BlackClock "0:01:31"]
[Board "2"]

1. e4 {[%clk 0:03:00]}  e5 {[%clk 0:02:57]} 2. Nf3 {[%clk 0:03:00]}  Nc6 {[%clk 0:02:58]} 3. Nc3 {[%clk 0:03:00]}  Nf6 {[%clk 0:02:58]} 4. d4 {[%clk 0:03:00]}  exd4 {[%clk 0:02:58]} 5. Nxd4 {[%clk 0:03:01]}  Bb4 {[%clk 0:02:59]} 6. Nxc6 {[%clk 0:03:00]}  bxc6 {[%clk 0:02:59]} 7. Bd3 {[%clk 0:03:00]}  d6 {[%clk 0:03:00]} 8. O-O {[%clk 0:02:59]}  Ng4 {[%clk 0:03:00]} 9. h3 {[%clk 0:02:52]}  Ne5 {[%clk 0:03:00]} 10. f4 {[%clk 0:02:40]}  Nxd3 {[%clk 0:03:00]} 11. Qxd3 {[%clk 0:02:36]}  O-O {[%clk 0:02:59]} 12. b3 {[%clk 0:02:27]}  a5 {[%clk 0:02:56]} 13. Bb2 {[%clk 0:02:27]}  Ba6 {[%clk 0:02:52]} 14. Qg3 {[%clk 0:02:26]}  Bxf1 {[%clk 0:02:51]} 15. Rxf1 {[%clk 0:02:24]}  f6 {[%clk 0:02:50]} 16. Ne2 {[%clk 0:02:18]}  Qe7 {[%clk 0:02:44]} 17. Qd3 {[%clk 0:02:16]}  Rae8 {[%clk 0:02:34]} 18. Ng3 {[%clk 0:02:16]}  d5 {[%clk 0:02:24]} 19. e5 {[%clk 0:02:02]}  fxe5 {[%clk 0:02:24]} 20. Bxe5 {[%clk 0:02:03]}  Qf7 {[%clk 0:02:23]} 21. Kh2 {[%clk 0:01:56]}  Bd6 {[%clk 0:02:17]} 22. Bxd6 {[%clk 0:01:56]}  cxd6 {[%clk 0:02:18]} 23. f5 {[%clk 0:01:57]}  Qf6 {[%clk 0:02:16]} 24. c4 {[%clk 0:01:55]}  d4 {[%clk 0:02:13]} 25. c5 {[%clk 0:01:46]}  Re3 {[%clk 0:02:08]} 26. Qd1 {[%clk 0:01:39]}  Qe5 {[%clk 0:02:04]} 27. Qg4 {[%clk 0:01:38]}  h5 {[%clk 0:01:54]} 28. Qh4 {[%clk 0:01:35]}  dxc5 {[%clk 0:01:52]} 29. Rf4 {[%clk 0:01:18]}  d3 {[%clk 0:01:52]} 30. Nxh5 {[%clk 0:01:09]}  d2 {[%clk 0:01:45]} 31. Qg4 {[%clk 0:00:25]}  Rxf5 {[%clk 0:01:31]} 0-1


[Site "https://www.chess.com"]

[Event "Titled Tuesday Blitz October 31 Late 2023"]
[White "Andreikin, Dmitry"]
[Black "Martinez Alcantara, Jose Eduardo"]
[WhiteFideId "4158814"]
[BlackFideId "3805662"]
[WhiteElo "3110"]
[BlackElo "3112"]
[Result "1-0"]
[Round "10"]
[TimeControl "180+1"]
[Date "2023.10.31"]
[WhiteClock "0:00:28"]
[BlackClock "0:00:00"]
[Board "3"]

1. d4 {[%clk 0:03:00]}  Nf6 {[%clk 0:03:00]} 2. c4 {[%clk 0:03:01]}  e6 {[%clk 0:03:00]} 3. Nf3 {[%clk 0:03:01]}  Bb4+ {[%clk 0:03:01]} 4. Bd2 {[%clk 0:03:00]}  c5 {[%clk 0:03:01]} 5. Bxb4 {[%clk 0:02:58]}  cxb4 {[%clk 0:03:02]} 6. g3 {[%clk 0:02:58]}  b6 {[%clk 0:03:03]} 7. Bg2 {[%clk 0:02:58]}  Bb7 {[%clk 0:03:03]} 8. O-O {[%clk 0:02:58]}  a5 {[%clk 0:03:04]} 9. a3 {[%clk 0:02:50]}  Na6 {[%clk 0:03:02]} 10. Nbd2 {[%clk 0:02:46]}  d6 {[%clk 0:02:50]} 11. e3 {[%clk 0:02:45]}  O-O {[%clk 0:02:50]} 12. Ne1 {[%clk 0:02:44]}  Bxg2 {[%clk 0:02:49]} 13. Kxg2 {[%clk 0:02:45]}  e5 {[%clk 0:02:48]} 14. Nd3 {[%clk 0:02:45]}  exd4 {[%clk 0:02:27]} 15. exd4 {[%clk 0:02:46]}  bxa3 {[%clk 0:02:27]} 16. Rxa3 {[%clk 0:02:32]}  d5 {[%clk 0:02:25]} 17. c5 {[%clk 0:02:32]}  bxc5 {[%clk 0:02:24]} 18. dxc5 {[%clk 0:02:26]}  Nb4 {[%clk 0:02:18]} 19. Nxb4 {[%clk 0:02:15]}  axb4 {[%clk 0:02:18]} 20. Rxa8 {[%clk 0:02:15]}  Qxa8 {[%clk 0:02:19]} 21. Nf3 {[%clk 0:02:14]}  Re8 {[%clk 0:02:15]} 22. Qb3 {[%clk 0:02:06]}  Re4 {[%clk 0:02:08]} 23. Rc1 {[%clk 0:02:03]}  Qc6 {[%clk 0:02:05]} 24. Qd3 {[%clk 0:01:49]}  Ng4 {[%clk 0:01:31]} 25. Ng5 {[%clk 0:01:33]}  Ne5 {[%clk 0:00:55]} 26. Qc2 {[%clk 0:01:20]}  h6 {[%clk 0:00:46]} 27. Nxe4 {[%clk 0:01:19]}  dxe4 {[%clk 0:00:47]} 28. Qe2 {[%clk 0:01:01]}  f5 {[%clk 0:00:47]} 29. Qe3 {[%clk 0:00:53]}  Kh7 {[%clk 0:00:41]} 30. h3 {[%clk 0:00:48]}  Nd3 {[%clk 0:00:40]} 31. Rc4 {[%clk 0:00:46]}  b3 {[%clk 0:00:20]} 32. Rc3 {[%clk 0:00:45]}  f4 {[%clk 0:00:12]} 33. gxf4 {[%clk 0:00:43]}  Nxb2 {[%clk 0:00:11]} 34. Rxb3 {[%clk 0:00:40]}  Qg6+ {[%clk 0:00:09]} 35. Qg3 {[%clk 0:00:37]}  Qf6 {[%clk 0:00:10]} 36. Rb6 {[%clk 0:00:32]}  Qf5 {[%clk 0:00:11]} 37. Rxb2 {[%clk 0:00:31]}  Qxc5 {[%clk 0:00:09]} 38. Re2 {[%clk 0:00:28]}  Qf5 {[%clk 0:00:09]} 39. Qg4 {[%clk 0:00:27]}  Qd5 {[%clk 0:00:05]} 40. f5 {[%clk 0:00:26]}  e3+ {[%clk 0:00:05]} 41. Qf3 {[%clk 0:00:26]}  Qd8 {[%clk 0:00:05]} 42. Rxe3 {[%clk 0:00:26]}  Qg5+ {[%clk 0:00:06]} 43. Qg4 {[%clk 0:00:26]}  Qd8 {[%clk 0:00:07]} 44. Qg6+ {[%clk 0:00:26]}  Kg8 {[%clk 0:00:01]} 45. Re8+ {[%clk 0:00:27]}  Qxe8 {[%clk 0:00:02]} 46. Qxe8+ {[%clk 0:00:27]}  Kh7 {[%clk 0:00:02]} 47. Qg6+ {[%clk 0:00:27]}  Kg8 {[%clk 0:00:03]} 48. f6 {[%clk 0:00:28]}  Kf8 {[%clk 0:00:00]} 49. Qxg7+ {[%clk 0:00:28]} 1-0


[Site "https://www.chess.com"]

[Event "Titled Tuesday Blitz October 31 Late 2023"]
[White "Yoo, Christopher Woojin"]
[Black "Zhigalko, Sergei"]
[WhiteFideId "30909694"]
[BlackFideId "13502956"]
[WhiteElo "3014"]
[BlackElo "2914"]
[Result "1-0"]
[Round "10"]
[TimeControl "180+1"]
[Date "2023.10.31"]
[WhiteClock "0:02:01"]
[BlackClock "0:00:00"]
[Board "5"]

1. d4 {[%clk 0:03:00]}  Nf6 {[%clk 0:02:59]} 2. Nf3 {[%clk 0:03:01]}  e6 {[%clk 0:03:00]} 3. g3 {[%clk 0:03:01]}  d5 {[%clk 0:02:57]} 4. Bg2 {[%clk 0:03:01]}  Be7 {[%clk 0:02:56]} 5. O-O {[%clk 0:03:02]}  b5 {[%clk 0:02:56]} 6. b3 {[%clk 0:02:57]}  Bb7 {[%clk 0:02:55]} 7. c4 {[%clk 0:02:57]}  dxc4 {[%clk 0:02:46]} 8. bxc4 {[%clk 0:02:58]}  bxc4 {[%clk 0:02:38]} 9. Qa4+ {[%clk 0:02:57]}  Nbd7 {[%clk 0:02:37]} 10. Ne5 {[%clk 0:02:55]}  Qc8 {[%clk 0:01:38]} 11. Nc6 {[%clk 0:02:48]}  Nb6 {[%clk 0:01:27]} 12. Nxe7+ {[%clk 0:02:46]}  Nxa4 {[%clk 0:01:27]} 13. Nxc8 {[%clk 0:02:46]}  Bxg2 {[%clk 0:01:27]} 14. Kxg2 {[%clk 0:02:45]}  Rxc8 {[%clk 0:01:26]} 15. Ba3 {[%clk 0:02:45]}  c5 {[%clk 0:01:13]} 16. dxc5 {[%clk 0:02:41]}  O-O {[%clk 0:00:38]} 17. Rc1 {[%clk 0:02:39]}  Nxc5 {[%clk 0:00:38]} 18. Nd2 {[%clk 0:02:36]}  Rfd8 {[%clk 0:00:36]} 19. Nxc4 {[%clk 0:02:36]}  Nd5 {[%clk 0:00:19]} 20. Ne5 {[%clk 0:02:35]}  Ne4 {[%clk 0:00:18]} 21. Nc6 {[%clk 0:02:35]}  Re8 {[%clk 0:00:15]} 22. Rc4 {[%clk 0:02:31]}  Nb6 {[%clk 0:00:10]} 23. Rc2 {[%clk 0:02:29]}  Rc7 {[%clk 0:00:06]} 24. Rac1 {[%clk 0:02:29]}  h6 {[%clk 0:00:05]} 25. f3 {[%clk 0:02:26]}  Nf6 {[%clk 0:00:06]} 26. e4 {[%clk 0:02:25]}  Kh7 {[%clk 0:00:04]} 27. Ne5 {[%clk 0:02:21]}  Rxc2+ {[%clk 0:00:02]} 28. Rxc2 {[%clk 0:02:21]}  Kg8 {[%clk 0:00:02]} 29. Rc7 {[%clk 0:02:18]}  Rd8 {[%clk 0:00:03]} 30. Bb4 {[%clk 0:02:16]}  Rb8 {[%clk 0:00:01]} 31. Nc6 {[%clk 0:02:15]}  Ra8 {[%clk 0:00:01]} 32. Rxa7 {[%clk 0:02:14]}  Re8 {[%clk 0:00:01]} 33. Bc5 {[%clk 0:02:14]}  Nc4 {[%clk 0:00:01]} 34. a4 {[%clk 0:02:13]}  Kh7 {[%clk 0:00:02]} 35. Rc7 {[%clk 0:02:04]}  Ra8 {[%clk 0:00:01]} 36. Ba7 {[%clk 0:02:05]}  Ne8 {[%clk 0:00:01]} 37. Rxf7 {[%clk 0:02:03]}  Ned6 {[%clk 0:00:01]} 38. Rd7 {[%clk 0:02:03]}  Nc8 {[%clk 0:00:02]} 39. Bd4 {[%clk 0:02:01]}  N8b6 {[%clk 0:00:01]} 40. Rxg7+ {[%clk 0:02:01]}  Kh8 {[%clk 0:00:02]} 41. Rb7+ {[%clk 0:02:01]}  e5 {[%clk 0:00:02]} 42. Bxb6 {[%clk 0:02:01]}  Nd6 {[%clk 0:00:01]} 43. Rd7 {[%clk 0:02:01]}  Nb7 {[%clk 0:00:00]} 44. Rxb7 {[%clk 0:02:01]} 1-0


[Site "https://www.chess.com"]

[Event "Titled Tuesday Blitz October 31 Late 2023"]
[White "Sanchez Alvares, Kelvin Antonio"]
[Black "Troff, Kayden"]
[WhiteFideId "3906680"]
[BlackFideId "2047896"]
[WhiteElo "2601"]
[BlackElo "2785"]
[Result "0-1"]
[Round "10"]
[TimeControl "180+1"]
[Date "2023.10.31"]
[WhiteClock "0:00:00"]
[BlackClock "0:01:56"]
[Board "19"]

1. e4 {[%clk 0:02:58]}  c5 {[%clk 0:02:59]} 2. Nf3 {[%clk 0:02:58]}  g6 {[%clk 0:03:00]} 3. d4 {[%clk 0:02:56]}  cxd4 {[%clk 0:03:01]} 4. Qxd4 {[%clk 0:02:52]}  Nf6 {[%clk 0:03:00]} 5. e5 {[%clk 0:02:52]}  Nc6 {[%clk 0:03:01]} 6. Qa4 {[%clk 0:02:53]}  Nd5 {[%clk 0:03:01]} 7. Qe4 {[%clk 0:02:53]}  Nb6 {[%clk 0:03:02]} 8. Nc3 {[%clk 0:02:53]}  Bg7 {[%clk 0:03:02]} 9. Bf4 {[%clk 0:02:53]}  d5 {[%clk 0:03:02]} 10. exd6 {[%clk 0:02:51]}  Bxc3+ {[%clk 0:03:02]} 11. bxc3 {[%clk 0:02:51]}  O-O {[%clk 0:03:03]} 12. Bd3 {[%clk 0:02:45]}  Bf5 {[%clk 0:02:54]} 13. Qe2 {[%clk 0:02:43]}  Nd5 {[%clk 0:02:53]} 14. Bd2 {[%clk 0:02:42]}  exd6 {[%clk 0:02:50]} 15. O-O {[%clk 0:02:38]}  Re8 {[%clk 0:02:47]} 16. Qd1 {[%clk 0:02:38]}  Qf6 {[%clk 0:02:46]} 17. c4 {[%clk 0:02:33]}  Bxd3 {[%clk 0:02:32]} 18. cxd3 {[%clk 0:02:31]}  Nc3 {[%clk 0:02:31]} 19. Qb3 {[%clk 0:02:20]}  Ne2+ {[%clk 0:02:25]} 20. Kh1 {[%clk 0:02:19]}  b6 {[%clk 0:02:24]} 21. Bg5 {[%clk 0:02:13]}  Qf5 {[%clk 0:02:20]} 22. Be3 {[%clk 0:02:11]}  Nf4 {[%clk 0:02:16]} 23. Rad1 {[%clk 0:02:03]}  Nxg2 {[%clk 0:02:15]} 24. Ng1 {[%clk 0:01:51]}  Nh4 {[%clk 0:02:02]} 25. d4 {[%clk 0:00:00]}  Qg4 {[%clk 0:01:56]} 0-1


[Site "https://www.chess.com"]

[Event "Titled Tuesday Blitz October 31 Late 2023"]
[White "Gedajlovic, Max"]
[Black "Tologon tegin, Semetei"]
[WhiteFideId "2616840"]
[BlackFideId "13800574"]
[WhiteElo "2735"]
[BlackElo "2567"]
[Result "0-1"]
[Round "10"]
[TimeControl "180+1"]
[Date "2023.10.31"]
[WhiteClock "0:00:05"]
[BlackClock "0:00:48"]
[Board "21"]

1. e4 {[%clk 0:03:00]}  Nc6 {[%clk 0:02:56]} 2. d4 {[%clk 0:03:00]}  d5 {[%clk 0:02:56]} 3. e5 {[%clk 0:02:59]}  Bf5 {[%clk 0:02:55]} 4. h4 {[%clk 0:02:55]}  h5 {[%clk 0:02:52]} 5. Ne2 {[%clk 0:02:46]}  e6 {[%clk 0:02:51]} 6. Ng3 {[%clk 0:02:46]}  Bg6 {[%clk 0:02:45]} 7. Be2 {[%clk 0:02:46]}  Nge7 {[%clk 0:02:42]} 8. c3 {[%clk 0:02:39]}  Nf5 {[%clk 0:02:39]} 9. Nxf5 {[%clk 0:02:39]}  Bxf5 {[%clk 0:02:37]} 10. g3 {[%clk 0:02:28]}  g6 {[%clk 0:02:31]} 11. Nd2 {[%clk 0:02:27]}  Be7 {[%clk 0:02:25]} 12. a4 {[%clk 0:02:25]}  a6 {[%clk 0:02:22]} 13. a5 {[%clk 0:02:18]}  Qd7 {[%clk 0:02:20]} 14. Nf1 {[%clk 0:02:18]}  Bf8 {[%clk 0:02:04]} 15. Qb3 {[%clk 0:02:09]}  O-O-O {[%clk 0:02:03]} 16. Ne3 {[%clk 0:02:05]}  Ne7 {[%clk 0:02:02]} 17. Bd2 {[%clk 0:01:57]}  Bh6 {[%clk 0:02:00]} 18. Rc1 {[%clk 0:01:39]}  Kb8 {[%clk 0:02:00]} 19. O-O {[%clk 0:01:31]}  Ka8 {[%clk 0:01:59]} 20. Rfd1 {[%clk 0:01:30]}  g5 {[%clk 0:01:58]} 21. hxg5 {[%clk 0:01:30]}  Bxg5 {[%clk 0:01:57]} 22. c4 {[%clk 0:01:25]}  h4 {[%clk 0:01:55]} 23. cxd5 {[%clk 0:01:24]}  hxg3 {[%clk 0:01:54]} 24. fxg3 {[%clk 0:01:02]}  Bxe3+ {[%clk 0:01:47]} 25. Bxe3 {[%clk 0:01:03]}  Nxd5 {[%clk 0:01:47]} 26. Bf3 {[%clk 0:01:03]}  Rdg8 {[%clk 0:01:45]} 27. Bf2 {[%clk 0:01:02]}  Bg4 {[%clk 0:01:40]} 28. Kg2 {[%clk 0:00:37]}  Nf4+ {[%clk 0:01:34]} 29. Kf1 {[%clk 0:00:22]}  Bh3+ {[%clk 0:01:33]} 30. Ke1 {[%clk 0:00:21]}  Nd5 {[%clk 0:01:28]} 31. Ke2 {[%clk 0:00:21]}  Bg4 {[%clk 0:01:25]} 32. Bxg4 {[%clk 0:00:17]}  Rxg4 {[%clk 0:01:24]} 33. Rh1 {[%clk 0:00:18]}  Rhg8 {[%clk 0:01:21]} 34. Rc4 {[%clk 0:00:15]}  f6 {[%clk 0:01:18]} 35. exf6 {[%clk 0:00:14]}  Nxf6 {[%clk 0:01:19]} 36. Rhc1 {[%clk 0:00:14]}  Nd5 {[%clk 0:01:18]} 37. Qf3 {[%clk 0:00:13]}  R4g5 {[%clk 0:01:17]} 38. R1c2 {[%clk 0:00:12]}  Rf5 {[%clk 0:01:17]} 39. Qe4 {[%clk 0:00:12]}  Rgf8 {[%clk 0:01:16]} 40. Ke1 {[%clk 0:00:12]}  c6 {[%clk 0:01:12]} 41. Re2 {[%clk 0:00:09]}  R5f6 {[%clk 0:01:11]} 42. g4 {[%clk 0:00:09]}  Qc7 {[%clk 0:01:08]} 43. Qe5 {[%clk 0:00:08]}  Qxa5+ {[%clk 0:01:08]} 44. Kf1 {[%clk 0:00:08]}  Qb5 {[%clk 0:01:02]} 45. b3 {[%clk 0:00:05]}  Qxb3 {[%clk 0:01:02]} 46. Rc1 {[%clk 0:00:05]}  Qh3+ {[%clk 0:01:01]} 47. Ke1 {[%clk 0:00:05]}  Nf4 {[%clk 0:00:55]} 48. Re3 {[%clk 0:00:04]}  Ng2+ {[%clk 0:00:53]} 49. Kd1 {[%clk 0:00:03]}  Nxe3+ {[%clk 0:00:52]} 50. Bxe3 {[%clk 0:00:04]}  Rf1+ {[%clk 0:00:50]} 51. Kc2 {[%clk 0:00:04]}  Rxc1+ {[%clk 0:00:49]} 52. Bxc1 {[%clk 0:00:05]}  Qxg4 {[%clk 0:00:48]} 53. Bd2 {[%clk 0:00:03]}  Qf5+ {[%clk 0:00:48]} 54. Qxf5 {[%clk 0:00:03]}  exf5 {[%clk 0:00:49]} 55. Kd3 {[%clk 0:00:03]}  Re8 {[%clk 0:00:48]} 56. Bf4 {[%clk 0:00:03]}  Re4 {[%clk 0:00:48]} 57. Be5 {[%clk 0:00:04]}  Ka7 {[%clk 0:00:48]} 58. Kc4 {[%clk 0:00:05]}  Kb6 {[%clk 0:00:48]} 59. Bf6 {[%clk 0:00:04]}  a5 {[%clk 0:00:48]} 60. Bd8+ {[%clk 0:00:05]}  Ka6 {[%clk 0:00:48]} 61. Kc5 {[%clk 0:00:06]}  a4 {[%clk 0:00:48]} 62. Bf6 {[%clk 0:00:06]}  a3 {[%clk 0:00:48]} 63. Kc4 {[%clk 0:00:05]}  a2 {[%clk 0:00:48]} 0-1


[Site "https://www.chess.com"]